Workbook

Sheet Sheet1
B2: KATAR BASİT KİRİŞ MAX MOMENT VE YERİ HESABI ( 4 ADET YÜK ) (inş.müh. Gürcan BERBEROĞLU tel:0532 366 02 04 www.betoncelik.com )
H3: =+U12-O7-S7-W7 -> 9 | V3: Dikkat sadece sarı hücrelere data girilecek.
M5: 400 | O5: =IF(N42<0,1,IF(N44<0,2,IF(N46<0,3,IF(N48<0,4,0)))) -> 2 | Q5: 400 | U5: 200 | Y5: 400
F7: x = | H7: 6 | K7: m | O7: 1 | Q7: m | S7: 4 | U7: m | W7: 2 | Y7: m | AD7: =+U12-H7-O7-S7-W7 -> 3 | AF7: m
M10: c | Q10: d | U10: e | Y10: f
S12: L = | U12: 16 | W12: m | X12: =IF(U12>100,"en fazla 100 m girilecektir.","") -> 
C14: Va= | E14: =+V40 -> 612.5 | G14: KN | AI14: Vb= | AK14: =-AH49 -> 787.5 | AM14: KN
N15: =IF(O5=3,H41,IF(O5=4,H41,"")) -> 
D16: =IF(O5=2,V40,IF(O5=3,V40,IF(O5=4,V40,""))) -> 612.5 | N16: =IF(O5=2,H41,"") -> 612.5
R17: =IF(O5=3,H43,IF(O5=4,H43,"")) ->  | W17: kesme kuvveti diyagramı (KN)
D18: =IF(O5=1,V40,"") ->  | L18: =IF(O5=3,N42,IF(O5=4,N42,"")) ->  | N18: =IF(O5=1,H41,IF(O5=2,N42,"")) -> 212.5 | R18: =IF(O5=2,H43,"") -> 212.5
V19: =IF(O5=3,H45,IF(O5=4,H45,"")) -> 
P20: =IF(O5=3,N44,IF(O5=4,N44,"")) ->  | Z20: =IF(O5=4,H47,"") -> 
T21: =IF(O5=4,N46,"") -> 
R23: =IF(O5=1,H43,"") ->  | V23: =IF(O5=2,H45,"") -> -187.5 | Z23: =IF(O5=3,H47,"") -> 
L24: =IF(O5=1,N42,"") ->  | P24: =IF(O5=2,N44,"") -> -187.5 | T24: =IF(O5=3,N46,"") ->  | X24: =IF(O5=4,N48,"") ->  | AL24: =IF(O5=4,AH49,"") -> 
V25: =IF(O5=1,H45,"") ->  | Z25: =IF(O5=2,H47,"") -> -387.5 | AL25: =IF(O5=3,AH49,"") -> 
P26: =IF(O5=1,N44,"") ->  | T26: =IF(O5=2,N46,"") -> -387.5 | X26: =IF(O5=3,N48,"") -> 
Z27: =IF(O5=1,H47,"") ->  | AL27: =IF(O5=2,AH49,"") -> -787.5
T28: =IF(O5=1,N46,"") ->  | X28: =IF(O5=2,N48,"") -> -787.5
AL29: =IF(O5=1,AH49,"") -> 
X30: =IF(O5=1,N48,"") -> 
P34: moment diyagramı (KNm)
M35: =IF(O5=3,M51,IF(O5=4,M51,"")) ->  | Y35: =IF(O5=1,AE54,IF(O5=2,AE54,"")) -> 2362.5
L36: =IF(O5=2,M51,"") -> 3675 | Q36: =IF(O5=4,S52,"") ->  | U36: =IF(O5=1,Y53,IF(O5=2,Y53,"")) -> 3137.5 | Y36: =IF(O5=3,AE54,"") -> 
Q37: =IF(O5=3,S52,"") -> 
M38: =IF(O5=1,M51,"") ->  | Q38: =IF(O5=1,S52,IF(O5=2,S52,"")) -> 3887.5 | U38: =IF(O5=3,Y53,IF(O5=4,Y53,"")) -> 
Y39: =IF(O5=4,AE54,"") -> 
E40: Va = | G40: =+M5 -> 400 | I40: + | J40: =+Q5 -> 400 | L40: + | M40: =+U5 -> 200 | O40: + | P40: =+Y5 -> 400 | R40: - | S40: =-AH49 -> 787.5 | U40: = | V40: =+G40+J40+M40+P40-S40 -> 612.5 | Y40: KN
E41: Vcsol = | H41: =+V40 -> 612.5 | J41: KN
E42: Vcsağ = | H42: =+H41 -> 612.5 | J42: - | K42: =+M5 -> 400 | M42: = | N42: =+H42-K42 -> 212.5 | Q42: KN
E43: Vdsol = | H43: =+N42 -> 212.5 | J43: KN
E44: Vdsağ = | H44: =+H43 -> 212.5 | J44: - | K44: =+Q5 -> 400 | M44: = | N44: =+H44-K44 -> -187.5 | Q44: KN
E45: Vesol = | H45: =+N44 -> -187.5 | J45: KN
E46: Vesağ = | H46: =+H45 -> -187.5 | J46: - | K46: =+U5 -> 200 | M46: = | N46: =+H46-K46 -> -387.5 | Q46: KN
E47: Vfsol = | H47: =+N46 -> -387.5 | J47: KN
E48: Vfsağ = | H48: =+H47 -> -387.5 | J48: - | K48: =+Y5 -> 400 | M48: = | N48: =+H48-K48 -> -787.5 | Q48: KN
E49: Vb = ( | G49: =+M5 -> 400 | I49: * | J49: =+H7 -> 6 | L49: + | M49: =+Q5 -> 400 | O49: * | P49: =+H7+O7 -> 7 | R49: + | S49: =+U5 -> 200 | U49: * | V49: =+H7+O7+S7 -> 11 | X49: + | Y49: =+Y5 -> 400 | AA49: * | AB49: =+H7+O7+S7+W7 -> 13 | AD49: ) / | AE49: =+U12 -> 16 | AG49: = | AH49: =-(G49*J49+M49*P49+S49*V49+Y49*AB49)/AE49 -> -787.5 | AK49: KN
E50: Ma = 0
E51: Mc = | G51: =+V40 -> 612.5 | I51: * | J51: =+H7 -> 6 | L51: = | M51: =+G51*J51 -> 3675 | P51: KNm
E52: Md = | G52: =+V40 -> 612.5 | I52: * | J52: =+H7 -> 6 | L52: + | M52: =+N42 -> 212.5 | O52: * | P52: =+O7 -> 1 | R52: = | S52: =+G52*J52+M52*P52 -> 3887.5 | V52: KNm
E53: Me = | G53: =+V40 -> 612.5 | I53: * | J53: =+H7 -> 6 | L53: + | M53: =+N42 -> 212.5 | O53: * | P53: =+O7 -> 1 | R53: + | S53: =+N44 -> -187.5 | U53: * | V53: =+S7 -> 4 | X53: = | Y53: =+G53*J53+M53*P53+S53*V53 -> 3137.5 | AB53: KNm
E54: Mf = | G54: =+V40 -> 612.5 | I54: * | J54: =+H7 -> 6 | L54: + | M54: =+N42 -> 212.5 | O54: * | P54: =+O7 -> 1 | R54: + | S54: =+N44 -> -187.5 | U54: * | V54: =+S7 -> 4 | X54: + | Y54: =+N46 -> -387.5 | AA54: * | AB54: =+W7 -> 2 | AD54: = | AE54: =+G54*J54+M54*P54+S54*V54+Y54*AB54 -> 2362.5 | AH54: KNm
E55: Mb = | G55: =+V40 -> 612.5 | I55: * | J55: =+H7 -> 6 | L55: + | M55: =+N42 -> 212.5 | O55: * | P55: =+O7 -> 1 | R55: + | S55: =+N44 -> -187.5 | U55: * | V55: =+S7 -> 4 | X55: + | Y55: =+N46 -> -387.5 | AA55: * | AB55: =+W7 -> 2 | AD55: + | AE55: =+N48 -> -787.5 | AG55: * | AH55: =+AD7 -> 3 | AJ55: = | AK55: =+G55*J55+M55*P55+S55*V55+Y55*AB55+AE55*AH55 -> 0 | AN55: KNm
E56: =IF(I56=M51,"Mmax = Mc =",IF(I56=S52,"Mmax = Md =",IF(I56=Y53,"Mmax = Me =",IF(I56=AE54,"Mmax = Mf =",0)))) -> Mmax = Md = | I56: =MAX(M51,S52,Y53) -> 3887.5 | L56: KNm
C58: x | F58: Mmax | I58: Mmax | L58: x
C59: (m) | F59: (KNm) | I59: (KNm) | L59: (m)
C60: 0.01 | F60: 2094.49125 | I60: =MAX(F60:F100562) -> 3887.5 | L60: =INDEX(C60:C100562,MATCH(I60,F60:F100562,0),0) -> 6
C61: 0.02 | F61: 2101.465
C62: 0.03 | F62: 2108.42125
C63: 0.04 | F63: 2115.36
C64: 0.05 | F64: 2122.28125
C65: 0.06 | F65: 2129.185
C66: 0.07 | F66: 2136.07125
C67: 0.08 | F67: 2142.94
C68: 0.09 | F68: 2149.79125
C69: 0.1 | F69: 2156.625
C70: 0.11 | F70: 2163.44125
C71: 0.12 | F71: 2170.24
C72: 0.13 | F72: 2177.02125
C73: 0.14 | F73: 2183.785
C74: 0.15 | F74: 2190.53125
C75: 0.16 | F75: 2197.26
C76: 0.17 | F76: 2203.97125
C77: 0.18 | F77: 2210.665
C78: 0.19 | F78: 2217.34125
C79: 0.2 | F79: 2224
C80: 0.21 | F80: 2230.64125
C81: 0.22 | F81: 2237.265
C82: 0.23 | F82: 2243.87125
C83: 0.24 | F83: 2250.46
C84: 0.25 | F84: 2257.03125
C85: 0.26 | F85: 2263.585
C86: 0.27 | F86: 2270.12125
C87: 0.28 | F87: 2276.64
C88: 0.29 | F88: 2283.14125
C89: 0.3 | F89: 2289.625
C90: 0.31 | F90: 2296.09125
C91: 0.32 | F91: 2302.54
C92: 0.33 | F92: 2308.97125
C93: 0.34 | F93: 2315.385
C94: 0.35 | F94: 2321.78125
C95: 0.36 | F95: 2328.16
C96: 0.37 | F96: 2334.52125
C97: 0.38 | F97: 2340.865
C98: 0.39 | F98: 2347.19125
C99: 0.4 | F99: 2353.5
C100: 0.41 | F100: 2359.79125
C101: 0.42 | F101: 2366.065
C102: 0.43 | F102: 2372.32125
C103: 0.44 | F103: 2378.56
C104: 0.45 | F104: 2384.78125
C105: 0.46 | F105: 2390.985
C106: 0.47 | F106: 2397.17125
C107: 0.48 | F107: 2403.34
C108: 0.49 | F108: 2409.49125
C109: 0.5 | F109: 2415.625
C110: 0.51 | F110: 2421.74125
C111: 0.52 | F111: 2427.84
C112: 0.53 | F112: 2433.92125
C113: 0.54 | F113: 2439.985
C114: 0.55 | F114: 2446.03125
C115: 0.56 | F115: 2452.06
C116: 0.57 | F116: 2458.07125
C117: 0.58 | F117: 2464.065
C118: 0.59 | F118: 2470.04125
C119: 0.6 | F119: 2476
C120: 0.61 | F120: 2481.94125
C121: 0.62 | F121: 2487.865
C122: 0.63 | F122: 2493.77125
C123: 0.64 | F123: 2499.66
C124: 0.65 | F124: 2505.53125
C125: 0.66 | F125: 2511.385
C126: 0.67 | F126: 2517.22125
C127: 0.68 | F127: 2523.04
C128: 0.69 | F128: 2528.84125
C129: 0.7 | F129: 2534.625
C130: 0.71 | F130: 2540.39125
C131: 0.72 | F131: 2546.14
C132: 0.73 | F132: 2551.87125
C133: 0.74 | F133: 2557.585
C134: 0.75 | F134: 2563.28125
C135: 0.76 | F135: 2568.96
C136: 0.77 | F136: 2574.62125
C137: 0.78 | F137: 2580.265
C138: 0.79 | F138: 2585.89125
C139: 0.8 | F139: 2591.5
C140: 0.81 | F140: 2597.09125
C141: 0.82 | F141: 2602.665
C142: 0.83 | F142: 2608.22125
C143: 0.84 | F143: 2613.76
C144: 0.85 | F144: 2619.28125
C145: 0.86 | F145: 2624.785
C146: 0.87 | F146: 2630.27125
C147: 0.88 | F147: 2635.74
C148: 0.89 | F148: 2641.19125
C149: 0.9 | F149: 2646.625
C150: 0.91 | F150: 2652.04125
C151: 0.92 | F151: 2657.44
C152: 0.93 | F152: 2662.82125
C153: 0.94 | F153: 2668.185
C154: 0.95 | F154: 2673.53125
C155: 0.96 | F155: 2678.86
C156: 0.97 | F156: 2684.17125
C157: 0.98 | F157: 2689.465
C158: 0.99 | F158: 2694.74125
C159: 1 | F159: 2700
C160: 1.01 | F160: 2705.24125
C161: 1.02 | F161: 2710.465
C162: 1.03 | F162: 2715.67125
C163: 1.04 | F163: 2720.86
C164: 1.05 | F164: 2726.03125
C165: 1.06 | F165: 2731.185
C166: 1.07 | F166: 2736.32125
C167: 1.08 | F167: 2741.44
C168: 1.09 | F168: 2746.54125
C169: 1.1 | F169: 2751.625
C170: 1.11 | F170: 2756.69125
C171: 1.12 | F171: 2761.74
C172: 1.13 | F172: 2766.77125
C173: 1.14 | F173: 2771.785
C174: 1.15 | F174: 2776.78125
C175: 1.16 | F175: 2781.76
C176: 1.17 | F176: 2786.72125
C177: 1.18 | F177: 2791.665
C178: 1.19 | F178: 2796.59125
C179: 1.2 | F179: 2801.5
C180: 1.21 | F180: 2806.39125
C181: 1.22 | F181: 2811.265
C182: 1.23 | F182: 2816.12125
C183: 1.24 | F183: 2820.96
C184: 1.25 | F184: 2825.78125
C185: 1.26 | F185: 2830.585
C186: 1.27 | F186: 2835.37125
C187: 1.28 | F187: 2840.14
C188: 1.29 | F188: 2844.89125
C189: 1.3 | F189: 2849.625
C190: 1.31 | F190: 2854.34125
C191: 1.32 | F191: 2859.04
C192: 1.33 | F192: 2863.72125
C193: 1.34 | F193: 2868.385
C194: 1.35 | F194: 2873.03125
C195: 1.36 | F195: 2877.66
C196: 1.37 | F196: 2882.27125
C197: 1.38 | F197: 2886.865
C198: 1.39 | F198: 2891.44125
C199: 1.4 | F199: 2896
C200: 1.41 | F200: 2900.54125
C201: 1.42 | F201: 2905.065
C202: 1.43 | F202: 2909.57125
C203: 1.44 | F203: 2914.06
C204: 1.45 | F204: 2918.53125
C205: 1.46 | F205: 2922.985
C206: 1.47 | F206: 2927.42125
C207: 1.48 | F207: 2931.84
C208: 1.49 | F208: 2936.24125
C209: 1.5 | F209: 2940.625
C210: 1.51 | F210: 2944.99125
C211: 1.52 | F211: 2949.34
C212: 1.53 | F212: 2953.67125
... 747 more rows
